Cogmind - Beta 15 X1 @@@ ROGUE MODE // 2024.11.17 @ 14:14:36 Player: Some Pennies Result: Destroyed by N7-0P7(R) with Subdweller Machine Gun Performance ------------- Evolutions (0) 0 Regions Visited (2) 400 Robots Destroyed (52) 260 Value Destroyed (1229) 1229 Prototype IDs (3) 60 Alien Tech Used (0) 0 Bonus (0) 0 TOTAL SCORE: 1949 Bonus ------- None Cogmind --------- Core Integrity 0/250 Matter 300/300 Energy 31/100 System Corruption 2% Temperature Cool (86) Movement Rolling (155) Ox5 Location -10/Subcaves Parts ------- > --- POWER (1) -------- (None) > --- PROPULSION (2) --- Light Treads Wheel > --- UTILITY (2) ------ High-capacity Storage Unit Seismic Detector > --- WEAPON (2) ------- Subdweller Laser Subdweller Beam Cannon > --- INVENTORY (20) --- Ion Engine Subdweller Power Source Subdweller Monowheel Heat Sink Heat Sink Medium Storage Unit Machine Analyzer Subdweller Optics Improved Terrain Scanner Terrain Scan Processor Makeshift Light Armor Plating Hacking Suite Makeshift Hacking Suite Subdweller Laser Particle Cannon Battle Cannon Datajack Multitool Heavy Hammer Peak State ------------ > --- POWER ------------ Ion Engine > --- PROPULSION ------- Light Treads Light Treads > --- UTILITY ---------- Heat Sink Large Storage Unit > --- WEAPON ----------- Particle Cannon Dirty Datajack > --- INVENTORY -------- Ion Engine Light Treads Light Treads Heat Sink Medium Storage Unit Improved Terrain Scanner Terrain Scan Processor Seismic Detector Seismic Detector Hacking Suite Particle Cannon Particle Cannon Grenade Launcher Datajack Heavy Hammer [Rating: 15] Favorites ----------- Power Ion Engine Engine Ion Engine Propulsion Light Treads Treads Light Treads Wheel Wheel Utility Large Storage Unit Device Heat Sink Storage Large Storage Unit Protection Makeshift Light Armor Plating Weapon Particle Cannon Energy Gun Subdweller Laser Energy Cannon Particle Cannon Ballistic Gun Assault Rifle Launcher Grenade Launcher Special Weapon Mining Laser Impact Weapon Heavy Hammer Special Melee Weapon Dirty Datajack Build | -11 -10 -10 ------- Run | Yrd Mat Sub Slots Evolved . | . . . Power . | . . . Propulsion . | . . . Utility . | . . . Weapon . | . . . Parts Attached 36 | 7 15 14 Power 4 | 1 2 1 Engine 4 | 1 2 1 Core . | . . . Reactor . | . . . Propulsion 5 | 2 . 3 Treads 4 | 2 . 2 Leg . | . . . Wheel 1 | . . 1 Hover . | . . . Flight . | . . . Utility 14 | 2 9 3 Device 10 | 1 8 1 Storage 3 | 1 1 1 Processor . | . . . Hackware . | . . . Protection 1 | . . 1 Artifact . | . . . Weapon 13 | 2 4 7 Energy Gun 1 | . . 1 Energy Cannon 6 | . 3 3 Ballistic Gun 2 | 2 . . Ballistic Cannon . | . . . Launcher 1 | . . 1 Special Weapon 1 | . 1 . Impact Weapon 1 | . . 1 Slashing Weapon . | . . . Piercing Weapon . | . . . Special Melee Weapon 1 | . . 1 Unidentified Prototypes . | . . . Parts Lost 7 | . . 7 Power 1 | . . 1 Propulsion 3 | . . 3 Utility . | . . . Weapon 3 | . . 3 Highest Loss Streak 3 | . . 3 To Critical Strikes . | . . . Average Backups 13 | 2 13 14 Power 1 | . 1 1 Propulsion 1 | . 2 1 Utility 6 | . 5 7 Weapon 4 | 1 4 3 Tool/Special . | . . . Unused Backups 24 | . 10 14 Power 3 | . 1 2 Propulsion 3 | . 2 1 Utility 10 | . 2 8 Weapon 6 | . 5 1 Tool/Special 2 | . . 2 Average Slot Usage (%) 99 | . 100 98 Engine 14 | . 14 14 Treads 26 | . 28 24 Wheel 1 | . . 2 Device 12 | . 14 11 Storage 14 | . 14 14 Protection 1 | . . 2 Energy Gun 1 | . . 2 Energy Cannon 22 | . 21 24 Ballistic Gun 3 | . 6 . Peak Build Rating 15 | 7 11 15 Average Rating 10 | 5 9 11 On Entrance 6 | . 7 11 Naked Turns . | . . . Heaviest Build 59 | 14 34 59 Greatest Support 40 | 40 40 40 Greatest Overweight (x) 5 | . . 5 Average Overweight (x) . | . . . Largest Inventory Capacity 20 | 8 15 20 Average Capacity 14 | 7 14 15 Most Carried 19 | 6 15 19 Average Carried 13 | 2 13 14 Final Capacity 20 | 8 15 20 Final Carried 19 | 6 15 19 Class Distribution -------------------- 78% | Mutant 21% | Scavenger-Mutant Dominant Class ---------------- Mutant | -10/Materials Mutant | -10/Subcaves Resources | -11 -10 -10 ----------- Run | Yrd Mat Sub Matter Collected 894 | 298 319 277 Remotely . | . . . Salvage Created 1799 | 95 1220 484 Parts 116 | 7 79 30 Haulers Intercepted 2 | . 2 . Recyclers Shooed 1 | . 1 . Parts Field Recycled . | . . . Retrieved Matter . | . . . Parts Self-Destructed 7 | . . 7 Prevented . | . . . Kills | -11 -10 -10 ------- Run | Yrd Mat Sub Combat Hostiles Destroyed 40 | . 28 12 Guns 6 | . 6 . Cannons 31 | . 20 11 AOE 1 | . . 1 Classes Destroyed 11 | 2 7 2 Worker 1 | . 1 . Builder 2 | . 2 . Tunneler 2 | 1 1 . Hauler 2 | . 2 . Recycler 3 | 1 2 . Operator 1 | . 1 . Watcher 1 | . 1 . Swarmer 13 | . 12 1 Grunt 16 | . 16 . Artisan 1 | . . 1 Subdweller 11 | . . 11 Best Kill Streak 7 | 2 7 3 Combat Bots Only 7 | . 7 3 Max Kills in Single Turn 2 | 1 2 1 Gunslinging . | . . . Exploded 1 | . . 1 Melee . | . . . Uniques/NPCs Destroyed . | . . . Combat | -11 -10 -10 -------- Run | Yrd Mat Sub Hostile Shots Fired 160 | . 73 87 Missed 51 | . 17 34 Damage Taken 1566 | . 523 1043 Core 257 | . 69 188 Absorbed by Shields . | . . . Regen/Repaired (Parts) 18 | . 18 . Core Remaining (%) 100 | 100 . . Volleys Fired 161 | 7 76 78 Largest 2 | 2 2 2 Hottest 148 | 40 136 148 Shots Fired 303 | 14 152 137 Gun 70 | 14 43 13 Cannon 228 | . 108 120 Launcher 4 | . . 4 Special 1 | . 1 . Kinetic 57 | 14 43 . Thermal 242 | . 109 133 Explosive 4 | . . 4 Electromagnetic . | . . . Robot Hit Streak 13 | 6 13 13 Robot Miss Streak 4 | 2 4 2 Penetration Max . | . . . Secondary Targets . | . . . Shots Hit Robots 160 | 9 89 62 Core Hits 67 | 5 41 21 Critical Kills 2 | . 2 . Critical Parts Destroyed . | . . . Critical Strikes 3 | . 2 1 Meltdown 2 | . 2 . Destroy 1 | . . 1 Melee Attacks 8 | . . 8 Impact 8 | . . 8 Slashing . | . . . Piercing . | . . . Sneak Attacks . | . . . Combat Hostiles . | . . . Follow-up Attacks . | . . . Damage Inflicted 3255 | 113 1707 1435 Guns 562 | 113 241 208 Cannons 2558 | . 1430 1128 Explosions 99 | . . 99 Melee . | . . . Ramming 36 | . 36 . Kinetic 354 | 113 241 . Thermal 2766 | . 1430 1336 Explosive 99 | . . 99 Electromagnetic . | . . . Impact . | . . . Slashing . | . . . Piercing . | . . . Highest Corruption 2 | . 2 2 Average Corruption 2 | . 2 2 Corruption Purged . | . . . Corruption Blocked . | . . . Effects 25 | . 11 14 Message Errors 2 | . 2 . Matter Fused 8 | . 3 5 Heat Flow Errors 4 | . 1 3 Energy Discharges 4 | . . 4 Data Loss (minor) 3 | . 3 . Data Loss (major) 1 | . 1 . Misfires 3 | . 1 2 Overload Shots . | . . . Overflow Damage 26 | . 9 17 Projectiles 9 | . 9 . Explosions 17 | . . 17 Melee . | . . . Knockbacks . | . . . Impact . | . . . Kinetic . | . . . Secondary . | . . . Self-Inflicted Damage 30 | . . 30 Shots 1 | . . 1 Rammed 5 | . 5 . Targets Rammed 5 | . 5 . Kicked . | . . . Crushed . | . . . Highest Temperature 279 | . 221 279 Average Temperature 64 | . 57 92 Received Heat Transfer 240 | . 117 123 Siege Activations . | . . . Martial Activations . | . . . Shielding Activations . | . . . Robots Disrupted . | . . . Combat Hostiles . | . . . Robots Corrupted . | . . . Combat Hostiles . | . . . Parts Fried . | . . . Impact Corruptions . | . . . Robots Melted 2 | . 2 . Combat Hostiles 2 | . 2 . Parts Melted 8 | . 5 3 Heat Transferred 4875 | . 2738 2137 Parts Sabotaged . | . . . Parts Stolen . | . . . Parts Stripped . | . . . Power Chain Reactions . | . . . Alert | -11 -10 -10 ------- Run | Yrd Mat Sub Maximum Alert Level 1 | . 1 . Low Security (%) 43 | 100 39 . Level 1 56 | . 60 . Level 2 . | . . . Level 3 . | . . . Level 4 . | . . . Level 5 . | . . . High Security . | . . . Max Security . | . . . Peak Influence 376 | 10 376 . Initial . | . . . Average 199 | . 211 . Influence Increases 1231 | 10 856 365 Destroy 0b10 Robot/C 580 | . 560 20 Destroy 0b10 Robot/NC 60 | 10 50 . Destroy Leader 116 | . 116 . Successful Hack 19 | . 19 . Select Force Hacks 30 | . 30 . Disable Machine 15 | . 15 . Destroy Structure 6 | . 6 . Lose Combat Pursuer 405 | . 60 345 Influence Decreases 1060 | 10 501 549 Time Decay 1009 | 10 501 498 Lost Part 51 | . . 51 Squads Dispatched 5 | . 5 . Investigation 4 | . 4 . Extermination . | . . . Reinforcement 1 | . 1 . Assault . | . . . Garrison . | . . . Intercept . | . . . Searches Triggered . | . . . Construction Impeded . | . . . Haulers Reinforced . | . . . Active Scanning Responses . | . . . Cargo Convoy Interrupts . | . . . Stealth | -11 -10 -10 --------- Run | Yrd Mat Sub Distress Signals 1 | . 1 . Communications Jammed . | . . . Distress Signals . | . . . Times Spotted 63 | . 39 24 Peak Tracking Total 6 | . 6 2 Tactical Retreats 11 | . 3 8 Traps | -11 -10 -10 ------- Run | Yrd Mat Sub Traps Triggered 4 | . 1 3 Indirectly . | . . . Trap Hack Attempts . | . . . Triggered . | . . . Disarmed . | . . . Reprogrammed . | . . . Reused . | . . . Traps Extracted . | . . . Installed . | . . . Triggered . | . . . Machines | -11 -10 -10 ---------- Run | Yrd Mat Sub Machines Disabled 1 | . 1 . Max in Single Turn 1 | . 1 . Machines Repaired . | . . . Machines Dismantled . | . . . Machines Sabotaged . | . . . Overloaded Fab Kills . | . . . Hacking | -11 -10 -10 --------- Run | Yrd Mat Sub Machines Accessed 10 | . 10 . Terminals 7 | . 7 . Fabricators . | . . . Repair Stations 1 | . 1 . Recycling Units 2 | . 2 . Scanalyzers . | . . . Garrison Access . | . . . Total Hacks 35 | . 35 . Successful 15 | . 15 . Failed 20 | . 20 . Catastrophic 2 | . 2 . Database Lockouts . | . . . Manual 22 | . 22 . Terminals 27 | . 27 . Fabricators . | . . . Repair Stations 2 | . 2 . Recycling Units 6 | . 6 . Scanalyzers . | . . . Garrison Access . | . . . Terminal Hacks 6 | . 6 . Part Schematic 3 | . 3 . Robot Analysis 1 | . 1 . Prototype ID Bank 2 | . 2 . Fabricator Hacks . | . . . Repair Station Hacks . | . . . Recycling Unit Hacks 1 | . 1 . Retrieve Components 1 | . 1 . Scanalyzer . | . . . Garrison Access Hacks . | . . . Unauthorized Hacks 8 | . 8 . Terminals 6 | . 6 . Botnet 1 | . 1 . Skim 5 | . 5 . Fabricators . | . . . Repair Stations 1 | . 1 . Patch 1 | . 1 . Recycling Units 1 | . 1 . Tunnel 1 | . 1 . Scanalyzers . | . . . Garrison Access . | . . . Data Cores Recovered . | . . . Used . | . . . Hacking Detections 9 | . 9 . Full Trace Events 1 | . 1 . Feedback Events . | . . . Feedback Blocked . | . . . Robot Schematics Acquired . | . . . Robots Built . | . . . Authchips . | . . . Time . | . . . Total Robot Build Rating . | . . . Part Schematics Acquired 3 | . 3 . Parts Built . | . . . Authchips . | . . . Time . | . . . Total Part Build Rating . | . . . Parts Repaired . | . . . Time . | . . . Parts Recycled . | . . . Recycled Matter . | . . . Retrieved Matter . | . . . Retrieved Components 4 | . 4 . Parts Scanalyzed . | . . . Part Schematics Acquired . | . . . Parts Damaged . | . . . Bothacking | -11 -10 -10 ------------ Run | Yrd Mat Sub Used RIF Installer . | . . . Robots Hacked . | . . . Non-combat . | . . . Combat . | . . . Robot Hacks Applied . | . . . Relay Couplers Released . | . . . Fabnet Peak Effective % . | . . . Robots Rewired . | . . . Allies Hacked . | . . . Hacks Repelled . | . . . Allies | -11 -10 -10 -------- Run | Yrd Mat Sub Total Allies . | . . . Largest Group . | . . . Highest-Rated Group . | . . . Highest-Rated Ally . | . . . Total Orders . | . . . Ally Attacks . | . . . Total Damage . | . . . Kills . | . . . Allies Corrupted . | . . . Allies Melted . | . . . Intel | -11 -10 -10 ------- Run | Yrd Mat Sub Active Infowar (turns) 1220 | 54 936 230 Terrain 44 | . 44 . Seismic 1176 | 54 892 230 Robot Analysis Total 1 | . 1 . Derelict Logs Recovered 2 | . . 2 Drone Launches . | . . . Drone Recoveries . | . . . Exploration | -11 -10 -10 ------------- Run | Yrd Mat Sub Turns Passed 3721 | 120 1892 1709 Spaces Moved 1831 | 55 919 857 Core 3 | 3 . . Treads 1686 | 52 919 715 Legs . | . . . Wheels 142 | . . 142 Hover . | . . . Flight . | . . . Fastest Speed 50 | 50 160 125 Average Speed 160 | 154 160 161 Slowest Speed 240 | 160 160 240 Overloaded Moves . | . . . Propulsion Burnouts . | . . . Robots Hopped . | . . . Cave-ins Triggered . | . . . Exploration Rate (%) 53 | 3 99 59 Regions Visited 2 Branch Regions 1 Pre-discovered Areas 3 | . 2 1 Known Exits Taken 1 | . 1 . Unknown Exits Taken 1 | 1 . . Scrap Searched 2 | . . 2 Spaces Dug 25 | . 1 24 Terrain Destroyed 61 | . 1 60 Melee 5 | . . 5 Projectile 21 | . 1 20 AOE 35 | . . 35 Terrain Rammed . | . . . Walls Destroyed . | . . . Machines Disabled . | . . . Actions | -11 -10 -10 --------- Run | Yrd Mat Sub Total 2301 | 74 1194 1033 Wait 173 | . 125 48 Move 1829 | 54 918 857 Hop . | . . . Pick Up 44 | 6 26 12 Fast Attach 10 | 7 . 3 Attach 7 | . 1 6 Detach 1 | . . 1 Swap 29 | . 16 13 Drop 34 | . 27 7 Fire 161 | 7 76 78 Melee 8 | . . 8 Ram . | . . . Kick . | . . . Crush 5 | . 5 . Escape Stasis . | . . . Rewire . | . . . Trap . | . . . Miscellaneous . | . . . Route ------- -11/Scrapyard -10/Materials (discovered 5 exits: *Mat x3 / *Min / *Sub) -10/Subcaves (discovered 3 exits: *Mat x2 / [*Rec]) History --------- Turn | Location | Event 35 | -11/Scrapyard | Discovered new exit (range 16) 121 | -11/Scrapyard | Entered Materials 316 | -10/Materials | Build established: Mutant 494 | -10/Materials | Discovered new exit (range 11) 647 | -10/Materials | Discovered new exit (range 15) 823 | -10/Materials | Destroyed 7 combat bots 921 | -10/Materials | Derelicts attacked the area 1060 | -10/Materials | Learned location of Storage (-8) 1097 | -10/Materials | Identified exit to Materials 1123 | -10/Materials | Identified exit to Subcaves 1123 | -10/Materials | Learned location of 1 exit from Materials 1145 | -10/Materials | Identified exit to Mines 1164 | -10/Materials | Learned 4 Recycling zone layouts 1195 | -10/Materials | Learned 4 Subcaves zone layouts 2013 | -10/Materials | Entered Subcaves 2014 | -10/Subcaves | Approached by a straggling Scientist 2014 | -10/Subcaves | Identified exit to Materials 2045 | -10/Subcaves | Shifting Twisted Machinery released Battle Rifle 2212 | -10/Subcaves | Shifting Twisted Machinery released Sub. Monowheel 2381 | -10/Subcaves | Discovered new exit (range 13) 2586 | -10/Subcaves | Core integrity fell below 50% 2594 | -10/Subcaves | Core integrity fell below 20% 2630 | -10/Subcaves | Lost 3 parts (2n1w) 2639 | -10/Subcaves | Learned Materials interactive machine intel 2889 | -10/Subcaves | Build established: Scavenger-Mutant 3038 | -10/Subcaves | Ambushed by angry Subdweller bent on revenge 3072 | -10/Subcaves | Shifting Twisted Machinery released Sub. Beam Cannon 3075 | -10/Subcaves | Shifting Twisted Machinery released Sub. Power Source 3186 | -10/Subcaves | Learned location of Zion (-7) 3186 | -10/Subcaves | Met a Zionite searching for "candidates" 3227 | -10/Subcaves | Shifting Twisted Machinery released Mak. Light Armor Plating 3229 | -10/Subcaves | Shifting Twisted Machinery released Shrapnel Trap 3445 | -10/Subcaves | Build established: Mutant 3532 | -10/Subcaves | Learned Materials stockpile data 3681 | -10/Subcaves | Disturbed a concealed Subdweller 3722 | -10/Subcaves | Destroyed by N7-0P7(R) with Subdweller Machine Gun Last Messages --------------- 03567_ Sub. Optics melted. 03567_ XC-D6W(R) destroyed. 03572_ Acquired Sub. Laser. 03577_ Dropped Lrg. Storage Unit. 03577_ Acquired 51 matter. 03580_ Acquired Sub. Power Source. 03584_ Acquired Sub. Optics. 03587_ Acquired Sub. Monowheel. 03617_ System corrupted: Matter fused (-7). 03620_ Acquired 7 matter. 03676_ Searching scrap... 03676_ Found Mak. Hacking Suite. 03676_ Found Battle Cannon. 03676_ Found 59 Matter. 03677_ Acquired 10 matter. 03679_ Acquired Mak. Hacking Suite. 03683_ Acquired Battle Cannon. 03687_ N7-0P7(R): "FNKSAJDH!" 03712_ N7-0P7(R) suffers critical hit (Destroy). 03720_ Lgt. Ion Engine destroyed. Map ----- +----------------------------------------------------+ | | | | | | | | | | | | | | | ?????????????????????????????????????????????????? | | ?????????????????????????????????????????????????? | | ?????????????????????????????????????????????????? | | ?????????????????????????????????????????????????? | | ?????????????????????????????????????????????????? | | ?????????????????????????????????????????????????? | | ?????????????????????????????????????????????????? | | ?????????????????????????????????????????????????? | | ?????????????????????????????????????????????????? | | ?????????????????????????????????????????????????? | | ?????????????????????????????????????????????????? | | ?????????????????????????????????????????????????? | | ?????????????????????????????????????????????????? | | ?????????????????????????????????????????????????? | | ?????????????????????????????????????????????????? | | ?????????????????????????????????###?????????????? | | ????????????????????????????????## ########??????? | | ???????????????????????########## # ####???? | | ???????????????????????# @ ;#" ##### | | ???????????????????????#&;R ## # ## # | | ???????????????????????# ##<#< ### ### | | ???????????????????????# ### ### ## | | ???????????????????????#<%## ## ### | | ???????????????????????##### ### #### #### | | ???????????????????????????# ## # | | ??????????????????????????# # ## ## | | ????????????????????????? ######## # | | ???????????????????????? ####??????########## | | ??????????????????????? #???????????????????? | | ???????????????????????## ???????????????????## | | ????????????????????????## ??????????????????## | | ?????????????????????????# ??????????????????# | | ?????????????????????????# ??????????????????# | | ??????????????????????????# ???????????????????## | | ????????????????????????????????????????????????## | | ?????????????????????????????????????????????????# | | ?????????????????????????????????????????????????# | | ?????????????????????????????????????????????????# | | ?????????????????????????????????????????????????# | | ?????????????????????????????????????????????????# | | ?????????????????????????????????????????????????? | | ?????????????????????????????????????????????????? | | ????????????????????????????????????????????????## | +----------------------------------------------------+ Best States ------------- Heat Dissipation 35 Energy Generation 10 Energy Capacity 250 Matter Stores 300 Matter Capacity 300 Sight Range 16 Terrain Scan Range 16 Terrain Scan Density 10 Armor Coverage 100 Evasion (%) 40 Recoil Reduction 2 Item Schematics ----------------- Huge Storage Unit | -10/Materials | Hacked ECM Suite | -10/Materials | Hacked Lgt. Armor Plating | -10/Materials | Hacked Robot Schematics ------------------ None Fabricated ------------ Nothing Repaired ---------- Nothing Alien Tech Used ----------------- None Achievements -------------- None Challenges ------------ None Game ------ Seed RecyclingPhysicsExtrapolator Manual? 0 Play Time 00:24:56 Cumulative 465.3 hours Start 2024.11.17 @ 13:52:23 End 2024.11.17 @ 14:14:36 Sessions 1 Manual Loads 0 Difficulty Rogue Special Mode None Game No. 312 Rogue 307 Adventurer 5 Explorer 0 Win Type - Total 11 Types 5/0/5/0/0/0/1/0/0 Lore% 79 Gallery% 90 Achievement% 76 Wizard Run 0 Options --------- Layout 2 ASCII 0 Keyboard 0 Movement Mouse Keybinds 0 Fullscreen 2 Font 24/Smallcaps Map View 50x44 Zoom Use 0% Tactical HUD 1 Map Filters NONE Filters NONE Steam 1 RUN: 97c85bea-ac0a-47aa-b553-b59e3501f3f6